bitfinex-derivatives/quotes_SOLF0:USTF0_20250706
["timestamp","ask_amount","ask_price","bid_price","bid_amount"]
[1751767087628,6.7922,147.19,147.18,194.02]
[1751767090927,6.7922,147.19,147.18,196.38243203]
[1751767093529,6.7922,147.19,147.18,2.36243203]
[1751767094023,13.72021349,147.19,147.17,239.76]
[1751767094221,4.69506955,147.18,147.17,239.76]
[1751767094724,4.69506955,147.18,147.17,45.78]
[1751767095629,6.7931,147.17,147.16,196.38243203]
[1751767103833,6.7931,147.17,147.16,196.36243203]
[1751767104034,6.7928,147.18,147.16,196.36243203]
[1751767104330,6.7928,147.18,147.17,2.36243203]
[1751767104530,11.4732298,147.18,147.17,2.36243203]
[1751767107244,20.49348556,147.18,147.17,2.36243203]
[1751767108142,20.49393023,147.18,147.17,2.36243203]
[1751767111043,4.68087447,147.18,147.17,2.36243203]
[1751767111243,55.29169708,147.24,147.17,2.36243203]
[1751767111442,21.20877453,147.23,147.22,2.36243203]
[1751767111649,27.99957453,147.23,147.22,2.36243203]
[1751767112846,25.62887637,147.23,147.22,2.36243203]
[1751767115449,25.6280455,147.23,147.22,2.36243203]
[1751767121153,16.6054732,147.23,147.22,2.36243203]
[1751767122054,25.67375462,147.23,147.22,2.36243203]
[1751767124453,18.88295462,147.23,147.22,2.36243203]
[1751767125553,18.93487238,147.23,147.22,2.36243203]
[1751767126356,25.72527238,147.23,147.22,2.36243203]
[1751767133451,13.75033936,147.23,147.22,2.36243203]
[1751767133659,4.68205794,147.23,147.22,2.36243203]
[1751767135159,6.7901,147.24,147.22,2.36243203]
[1751767136259,6.7901,147.24,147.21,6.7913]
[1751767136460,6.7901,147.24,147.22,2.36243203]
[1751767138360,4.74155134,147.23,147.22,2.36243203]
[1751767139761,6.7901,147.24,147.22,2.36243203]
[1751767140663,6.7901,147.24,147.23,2.36243203]
[1751767140863,25.78974917,147.24,147.23,2.36243203]
[1751767142965,25.78991709,147.24,147.23,2.36243203]
[1751767143667,18.99981709,147.24,147.23,2.36243203]
[1751767144064,13.78395776,147.24,147.23,2.36243203]
[1751767145360,20.57385776,147.24,147.23,2.36243203]
[1751767145564,11.53211605,147.24,147.23,2.36243203]
[1751767145759,6.7899,147.24,147.23,2.36243203]
[1751767146169,11.53334378,147.24,147.23,2.36243203]
[1751767146367,6.7899,147.24,147.23,2.36243203]
[1751767147167,11.53354996,147.24,147.23,2.36243203]
[1751767153278,20.57388009,147.24,147.23,2.36243203]
[1751767154777,15.83023013,147.24,147.23,2.36243203]
[1751767154978,20.6005254,147.24,147.23,2.36243203]
[1751767155178,25.82522575,147.24,147.23,2.36243203]
[1751767155380,25.82695388,147.24,147.23,2.36243203]
[1751767163496,19.03705388,147.24,147.23,2.36243203]
[1751767164195,25.82695388,147.24,147.23,2.36243203]
[1751767167198,25.84703465,147.24,147.23,2.36243203]
[1751767167588,25.84926133,147.24,147.23,2.36243203]
[1751767170087,25.84997632,147.24,147.23,2.36243203]
[1751767171701,19.06007632,147.24,147.23,2.36243203]
[1751767173099,19.06087842,147.24,147.23,2.36243203]
[1751767174798,25.85087842,147.24,147.22,6.7906]
[1751767175001,19.06087842,147.23,147.22,6.7906]
[1751767176199,19.06087842,147.23,147.22,9.15303203]
[1751767179601,10.00046752,147.23,147.22,9.15303203]
[1751767180492,4.77243842,147.23,147.22,9.15303203]
[1751767182906,4.77243842,147.23,147.22,6.7906]
[1751767183106,13.83631568,147.23,147.22,6.7906]
[1751767183306,13.83631568,147.23,147.22,9.15303203]
[1751767183706,13.83631568,147.23,147.22,2.36243203]
[1751767183901,20.62671568,147.23,147.22,2.36243203]
[1751767184101,25.85842159,147.23,147.22,2.36243203]
[1751767185606,25.85842159,147.23,147.21,48.12243203]
[1751767185607,6.7908,147.22,147.21,48.12243203]
[1751767185807,25.85882159,147.22,147.21,48.12243203]
[1751767186303,25.85882159,147.22,147.21,2.36243203]
[1751767188510,6.7914,147.21,147.2,2.36243203]
[1751767188714,16.79554433,147.21,147.2,2.36243203]
[1751767189213,25.85713786,147.21,147.2,2.36243203]
[1751767190306,19.06573786,147.21,147.18,45.74]
[1751767190605,21.42594624,147.2,147.18,45.74]
[1751767190811,11.56463842,147.19,147.18,45.74]
[1751767191012,16.79412864,147.19,147.18,45.74]
[1751767191306,13.80489698,147.19,147.18,48.10243203]
[1751767191512,13.80489698,147.19,147.18,54.89513203]
[1751767191915,4.77243842,147.19,147.18,54.89513203]
[1751767193208,6.7916,147.21,147.18,54.89513203]
[1751767193513,13.77225796,147.2,147.19,2.36243203]
[1751767195215,4.74844907,147.2,147.19,2.36243203]
[1751767197614,18.91345916,147.2,147.18,52.5327]
[1751767197807,6.7916,147.21,147.19,2.36243203]
[1751767198011,18.88366709,147.2,147.19,2.36243203]
[1751767199920,18.88130631,147.2,147.19,2.36243203]
[1751767200917,25.67310631,147.2,147.19,2.36243203]
[1751767201820,20.50925877,147.2,147.19,2.36243203]
[1751767202017,25.66894552,147.2,147.19,2.36243203]
[1751767202313,20.94820377,147.2,147.19,2.36243203]
[1751767202515,18.87121362,147.2,147.19,2.36243203]
[1751767202720,4.71480985,147.2,147.19,2.36243203]
[1751767203123,6.7912,147.22,147.19,9.15463203]
[1751767203317,6.7912,147.22,147.21,2.36243203]
[1751767203521,18.87353156,147.22,147.2,2.36243203]
[1751767203723,11.50726877,147.21,147.2,2.36243203]
[1751767208526,6.7922,147.2,147.18,48.10243203]
[1751767208725,4.66293203,147.23,147.18,48.10243203]
[1751767208929,18.92888329,147.22,147.2,2.36243203]
[1751767209129,4.72704539,147.21,147.2,2.36243203]
[1751767210731,11.51854539,147.21,147.2,2.36243203]
[1751767216735,4.72704539,147.21,147.2,9.15423203]
[1751767216928,6.7911,147.22,147.2,9.15423203]
[1751767217230,6.7911,147.22,147.21,2.36243203]
[1751767217432,20.52142641,147.22,147.21,2.36243203]
[1751767221538,20.52142641,147.22,147.2,2.36243203]
[1751767221837,4.73001264,147.21,147.2,2.36243203]
[1751767224244,13.73678449,147.21,147.2,2.36243203]
[1751767230249,13.73678449,147.21,147.2,9.15423203]
[1751767230746,13.73678449,147.21,147.2,2.36243203]
[1751767234453,20.52808449,147.21,147.2,2.36243203]
[1751767234655,20.52808449,147.21,147.19,9.15443203]
[1751767234853,6.7913,147.21,147.19,9.15443203]
[1751767241265,2.36243203,147.22,147.18,48.10243203]
[1751767241457,11.88471343,147.2,147.18,45.74]
[1751767241762,21.37412914,147.19,147.18,45.74]
[1751767242159,6.793,147.18,147.15,203.17623203]
[1751767242464,13.78292022,147.17,147.15,9.15623203]
[1751767242658,2.36243203,147.17,147.14,45.76]
[1751767242964,21.34033715,147.16,147.14,45.76]
[1751767243165,13.77416103,147.15,147.14,45.76]
[1751767243464,4.74630013,147.15,147.14,45.76]
[1751767244268,2.36243203,147.16,147.14,45.76]
[1751767244468,6.7938,147.16,147.14,45.76]
[1751767244765,4.74258638,147.15,147.14,45.76]
[1751767245268,6.7938,147.16,147.14,45.76]
[1751767248167,6.7941,147.15,147.14,45.76]
[1751767250770,6.7941,147.15,147.11,2.36243203]
[1751767250771,2.36243203,147.15,147.11,2.36243203]
[1751767250966,2.36243203,147.15,147.1,48.14243203]
[1751767251369,2.36243203,147.15,147.1,242.28243203]
[1751767251967,6.7953,147.13,147.1,54.93843203]
[1751767252863,6.7955,147.12,147.1,45.78]
[1751767253068,2.36243203,147.13,147.1,45.78]
[1751767253775,6.7959,147.11,147.1,45.78]
[1751767258882,6.7966,147.1,147.08,2.36243203]
[1751767259081,2.4231,147.14,147.07,7.98020799]
[1751767259082,2.36243203,147.11,147.07,2.36243203]
[1751767259277,2.36243203,147.11,147.07,196.54243203]
[1751767259482,6.7973,147.08,147.07,2.36243203]
[1751767259982,6.797,147.09,147.07,2.36243203]
[1751767262678,6.7973,147.08,147.06,45.78]
[1751767262871,2.36243203,147.09,147.06,45.78]
[1751767263276,6.7978,147.08,147.06,45.78]
[1751767263480,2.36243203,147.09,147.06,45.78]
[1751767263882,6.7973,147.08,147.06,45.78]
[1751767264278,2.36243203,147.09,147.05,2.36243203]
[1751767264478,6.7974,147.08,147.05,2.36243203]
[1751767265086,6.7974,147.08,147.05,9.16113203]
[1751767265986,6.7974,147.08,147.06,2.36243203]
[1751767272877,6.7968,147.1,147.07,2.36243203]
[1751767273085,2.36243203,147.12,147.07,2.36243203]
[1751767273590,6.797,147.09,147.08,2.36243203]
[1751767275586,48.3031,147.14,147.08,2.36243203]
[1751767275587,50.66553203,147.14,147.08,2.36243203]
[1751767275789,48.3031,147.14,147.1,2.36243203]
[1751767275983,50.66553203,147.14,147.1,2.36243203]
[1751767276191,6.7959,147.11,147.1,2.36243203]
[1751767276692,6.7959,147.11,147.08,6.797]
[1751767276693,6.7959,147.11,147.09,2.36243203]
[1751767280491,6.7959,147.11,147.08,9.15943203]
[1751767286698,6.7966,147.1,147.08,2.36243203]
[1751767287600,6.7966,147.1,147.08,9.15963203]
[1751767288501,6.7961,147.11,147.08,9.15963203]
[1751767288905,6.7961,147.11,147.09,6.7968]
[1751767290096,2.36477107,147.13,147.08,6.7973]
[1751767290395,2.36477107,147.13,147.08,9.16207107]
[1751767290697,6.7962,147.11,147.08,9.16207107]
[1751767295900,6.7964,147.1,147.08,9.16207107]
[1751767296105,6.7964,147.1,147.08,6.7973]
[1751767300405,2.36477107,147.12,147.08,6.7973]
[1751767300406,6.7961,147.11,147.08,6.7973]
[1751767300705,6.7961,147.11,147.09,6.7968]
[1751767301104,6.7961,147.11,147.09,9.16149546]
[1751767301402,6.7961,147.11,147.09,6.7968]
[1751767302107,6.7961,147.11,147.08,9.16179546]
[1751767302295,6.7961,147.11,147.09,2.36469546]
[1751767302501,6.7956,147.12,147.1,2.36469546]
[1751767303697,6.7956,147.12,147.11,2.36469546]
[1751767303906,11.4237265,147.12,147.11,2.36469546]
[1751767304401,11.4237265,147.12,147.09,6.7966]
[1751767304609,6.7956,147.12,147.11,2.36469546]
[1751767304907,11.42338939,147.12,147.11,2.36469546]
[1751767305107,11.42320761,147.12,147.11,2.36469546]
[1751767306110,6.7956,147.12,147.11,2.36469546]
[1751767310016,6.796,147.11,147.1,2.36469546]
[1751767314019,6.7957,147.12,147.1,2.36469546]
[1751767317221,4.64507099,147.11,147.1,2.36469546]
[1751767317422,4.64750652,147.11,147.1,2.36469546]
[1751767317622,4.64750652,147.11,147.1,2.3642186]
[1751767319224,13.61424312,147.11,147.1,2.3642186]
[1751767321226,9.5222814,147.15,147.1,2.3642186]
[1751767321522,11.7441814,147.18,147.14,2.36278769]
[1751767321723,14.06027964,147.17,147.12,45.88]
[1751767321929,6.7924,147.19,147.16,9.15608769]
[1751767322126,6.7924,147.19,147.18,2.36278769]
[1751767322428,20.78803848,147.19,147.18,2.36278769]
[1751767323926,20.78803848,147.19,147.15,6.7939]
[1751767323927,6.7927,147.18,147.17,2.36278769]
[1751767324329,2.2602,147.21,147.17,2.36278769]
[1751767324522,5.08137463,147.2,147.19,2.36278769]
[1751767324730,6.7916,147.21,147.19,2.36278769]
[1751767330127,6.7918,147.2,147.19,2.36278769]
[1751767334835,6.7918,147.2,147.18,2.36278769]
[1751767336034,6.7918,147.2,147.19,2.36278769]
[1751767341441,6.7915,147.21,147.19,2.36278769]
[1751767341637,6.7915,147.21,147.18,9.15411762]
[1751767342939,6.7915,147.21,147.19,2.36151762]
[1751767345443,6.7915,147.21,147.19,2.36139454]
[1751767347945,6.7915,147.21,147.19,2.36143379]
[1751767358153,6.7915,147.21,147.19,2.36143521]
[1751767358755,6.7915,147.21,147.19,2.36130152]
[1751767360356,6.7918,147.2,147.19,2.36130152]
[1751767362654,6.7918,147.2,147.19,2.36138855]
[1751767364154,16.63814875,147.2,147.19,2.36138855]
[1751767364360,25.61543281,147.2,147.19,2.36138855]
[1751767365159,25.61543281,147.2,147.19,2.36137438]
[1751767365560,20.93912552,147.2,147.19,2.36137438]
[1751767366059,15.76908406,147.2,147.19,2.36137438]
[1751767370761,15.78218336,147.2,147.19,2.36137438]
[1751767373364,8.99038336,147.2,147.19,2.36137438]
[1751767373567,8.99038336,147.2,147.19,9.15357438]
[1751767374064,8.99038336,147.2,147.19,2.36137438]
[1751767380175,8.99038336,147.2,147.19,9.15357438]
[1751767382175,8.99038336,147.2,147.19,9.15324451]
[1751767383274,9.53662938,147.24,147.2,6.7915]
[1751767383477,9.53662938,147.24,147.22,2.36104451]
[1751767384180,6.7906,147.23,147.22,2.36104451]
[1751767395292,15.71376006,147.23,147.22,2.36104451]
[1751767397485,15.71281844,147.23,147.22,2.36104451]
[1751767399691,8.92221844,147.23,147.22,2.36104451]
[1751767401390,8.92221844,147.23,147.22,9.15184451]
[1751767401983,6.7896,147.25,147.22,9.15184451]
[1751767402286,6.7896,147.25,147.24,2.36104451]
[1751767402588,15.70652017,147.25,147.24,2.36104451]
[1751767404795,20.40338985,147.25,147.24,2.36104451]
[1751767406198,15.70652017,147.25,147.24,2.36104451]
[1751767406496,11.47686638,147.25,147.24,2.36104451]
[1751767406994,6.7896,147.25,147.24,2.36104451]
[1751767407597,11.49800121,147.25,147.24,2.36104451]
[1751767416802,6.7896,147.25,147.24,2.36104451]
[1751767416998,11.49641368,147.25,147.24,2.36104451]
[1751767419902,6.7896,147.25,147.24,2.36104451]
[1751767420105,11.49710596,147.25,147.24,2.36104451]
[1751767421306,20.42158164,147.25,147.24,2.36104451]
[1751767424211,25.61718235,147.25,147.24,2.36104451]
[1751767426013,25.61725869,147.25,147.24,2.36104451]
[1751767429016,25.61896521,147.25,147.24,2.36104451]
[1751767431909,20.42158164,147.25,147.24,2.36104451]
[1751767432106,25.61992493,147.25,147.24,2.36104451]
[1751767434014,25.61992493,147.25,147.22,6.7904]
[1751767434015,6.7909,147.22,147.19,45.82]
[1751767434313,18.83032493,147.25,147.19,48.18104451]
[1751767434314,18.85565969,147.21,147.19,48.18104451]
[1751767434517,2.36104451,147.23,147.2,2.36104451]
[1751767434707,14.06561848,147.25,147.2,2.36104451]
[1751767434708,18.85619106,147.22,147.2,2.36104451]
[1751767434910,8.94139721,147.21,147.2,2.36104451]
[1751767435111,18.85619106,147.21,147.2,2.36104451]
[1751767435618,25.64779106,147.21,147.2,2.36104451]
[1751767437220,20.44719691,147.21,147.2,2.36104451]
[1751767437916,15.73299721,147.21,147.2,2.36104451]
[1751767438117,20.39335189,147.21,147.2,2.36104451]
[1751767439418,11.45195468,147.21,147.2,2.36104451]
[1751767439619,20.3890502,147.21,147.2,2.36104451]
[1751767440520,20.38918522,147.21,147.2,2.36104451]
[1751767441317,13.59758522,147.21,147.2,9.15284451]
[1751767441523,6.89584451,147.25,147.2,9.15284451]
[1751767441723,21.10039881,147.24,147.22,2.36104451]
[1751767441917,18.71543707,147.23,147.22,2.36104451]
[1751767442523,18.71523964,147.23,147.22,2.36104451]
[1751767445721,18.71523964,147.23,147.22,9.15184451]
[1751767446027,6.7892,147.26,147.22,2.36104451]
[1751767446228,16.30775846,147.27,147.25,2.36104451]
[1751767446422,16.30775846,147.27,147.26,2.36104451]
[1751767446620,35.01575393,147.27,147.26,2.36104451]
[1751767447622,25.49689547,147.27,147.26,2.36104451]
[1751767450330,20.34284386,147.27,147.26,2.36104451]
[1751767452134,13.55394386,147.27,147.26,2.36104451]
[1751767452632,8.89724651,147.27,147.26,2.36104451]
[1751767452828,8.89724651,147.27,147.26,9.15004451]
[1751767453028,6.7878,147.29,147.26,9.15004451]
[1751767453234,6.7878,147.29,147.28,2.36104451]
[1751767453436,18.71268127,147.29,147.28,2.36104451]
[1751767454236,25.50028127,147.29,147.28,2.36104451]
[1751767455136,18.71268127,147.29,147.28,2.36104451]
[1751767455337,6.7873,147.3,147.28,2.36104451]
[1751767455535,6.7873,147.3,147.29,2.36104451]
[1751767455738,16.70599326,147.3,147.29,2.36104451]
[1751767455934,11.49356358,147.3,147.29,2.36104451]
[1751767456134,6.7869,147.31,147.29,2.36104451]
[1751767456336,6.7869,147.31,147.3,2.36104451]
[1751767456536,25.61285528,147.31,147.3,2.36104451]
[1751767456735,18.82595528,147.31,147.3,2.36104451]
[1751767456937,8.89894988,147.31,147.3,2.36104451]
[1751767457136,11.87990297,147.36,147.3,2.36104451]
[1751767457332,6.7861,147.33,147.32,2.36104451]
[1751767457538,18.83790857,147.33,147.31,2.36104451]
[1751767457740,4.70129217,147.32,147.31,2.36104451]
[1751767457941,11.48769217,147.32,147.31,2.36104451]
[1751767458142,6.7864,147.32,147.31,2.36104451]
[1751767462945,2.3455,147.37,147.31,2.36104451]
[1751767463146,23.69178386,147.36,147.32,2.36104451]
[1751767463347,18.93916255,147.35,147.32,2.36104451]
[1751767463548,6.7858,147.33,147.32,2.36104451]
[1751767464039,6.7855,147.34,147.32,2.36104451]
[1751767465443,6.7855,147.34,147.31,6.7866]
[1751767465444,6.7855,147.34,147.33,2.36104451]
[1751767465744,11.52377665,147.34,147.33,2.36104451]
[1751767466140,6.7849,147.35,147.33,2.36104451]
[1751767466343,2.3455,147.37,147.34,2.36104451]
[1751767466544,13.6570787,147.36,147.35,2.36104451]
[1751767466746,13.65631263,147.36,147.35,2.36104451]
[1751767466946,6.7845,147.36,147.35,2.36104451]
[1751767467147,11.52105855,147.36,147.35,2.36104451]
[1751767467450,11.52105855,147.36,147.34,2.36104451]
[1751767467642,6.7845,147.36,147.34,2.36104451]
[1751767468744,6.7848,147.35,147.34,2.36104451]
[1751767470451,6.7842,147.37,147.34,9.14604451]
[1751767470747,6.7842,147.37,147.35,2.36104451]
[1751767471850,6.7842,147.37,147.36,2.36104451]
[1751767472949,11.4225,147.38,147.36,2.36104451]
[1751767473147,9.079,147.38,147.37,2.36104451]
[1751767474146,9.079,147.38,147.36,2.36104451]
[1751767474950,2.2962,147.41,147.37,2.36104451]
[1751767475144,4.65724451,147.41,147.38,2.36104451]
[1751767475338,6.7839,147.38,147.37,2.36104451]
[1751767477149,6.7832,147.39,147.37,2.36104451]
[1751767477948,6.7832,147.39,147.37,9.14494451]
[1751767478344,6.7832,147.39,147.37,2.36104451]
[1751767479152,6.7832,147.39,147.38,2.36104451]
[1751767484055,6.7832,147.39,147.37,2.36104451]
[1751767492061,4.80685382,147.38,147.37,2.36104451]
[1751767494460,11.59045382,147.38,147.37,2.36104451]
[1751767495166,4.81130905,147.38,147.37,2.36104451]
[1751767500768,4.81130905,147.38,147.37,9.14494451]
[1751767501071,14.21132429,147.45,147.37,2.36104451]
[1751767501264,2.36104451,147.43,147.39,2.36104451]
[1751767501465,14.30245247,147.42,147.39,2.36104451]
[1751767501665,14.30245247,147.41,147.39,2.36104451]
[1751767501864,2.36104451,147.43,147.39,2.36104451]
[1751767502172,14.30334797,147.42,147.39,2.36104451]
[1751767502367,14.30334797,147.41,147.39,2.36104451]
[1751767502672,6.7825,147.4,147.38,9.14424451]
[1751767506972,6.7822,147.41,147.39,6.783]
[1751767507574,6.7822,147.41,147.39,9.14404451]
[1751767508572,6.7818,147.42,147.39,9.14404451]
[1751767508765,9.42757978,147.45,147.41,2.36104451]
[1751767508969,14.1036288,147.44,147.42,2.36104451]
[1751767509171,9.04940793,147.43,147.42,2.36104451]
[1751767512373,9.42757978,147.48,147.42,2.36104451]
[1751767512580,16.47817492,147.47,147.45,2.36104451]
[1751767512771,20.88672051,147.46,147.45,2.36104451]
[1751767512973,25.65283464,147.46,147.45,2.36104451]
[1751767514273,20.5975889,147.46,147.45,2.36104451]
[1751767514669,13.8174889,147.46,147.45,2.36104451]
[1751767515580,20.5972889,147.46,147.45,2.36104451]
[1751767516482,13.8174889,147.46,147.45,2.36104451]
[1751767517181,13.8174889,147.46,147.39,45.82]
[1751767517381,2.36104451,147.48,147.43,2.36104451]
[1751767517574,18.90601362,147.47,147.43,2.36104451]
[1751767517779,13.83067586,147.46,147.43,2.36104451]
[1751767517980,11.54023525,147.45,147.43,2.36104451]
[1751767518279,11.78862429,147.49,147.44,2.36104451]
[1751767518483,21.27832648,147.48,147.45,2.36104451]
[1751767518785,18.90583349,147.47,147.45,2.36104451]
[1751767518983,13.83053397,147.46,147.45,2.36104451]
[1751767519579,20.61053397,147.46,147.45,2.36104451]
[1751767520083,15.85081784,147.46,147.45,2.36104451]
[1751767520384,20.60996925,147.46,147.45,2.36104451]
[1751767520679,15.85081784,147.46,147.45,2.36104451]
[1751767520884,20.62014453,147.46,147.44,2.36104451]
[1751767521083,6.78,147.46,147.44,2.36104451]
[1751767525486,2.36104451,147.47,147.43,2.36104451]
[1751767525787,4.76686697,147.46,147.43,2.36104451]
[1751767525984,2.36104451,147.47,147.43,2.36104451]
[1751767526189,6.7807,147.45,147.43,2.36104451]
[1751767526888,6.7807,147.45,147.43,9.14214451]
[1751767527082,6.7807,147.45,147.43,2.36104451]
[1751767529698,6.7807,147.45,147.43,9.14224451]
[1751767530991,6.7807,147.45,147.43,2.36104451]
[1751767532083,6.7807,147.45,147.44,2.36104451]
[1751767533991,6.7807,147.45,147.43,2.36104451]
[1751767537995,6.7807,147.45,147.43,9.14214451]
[1751767539093,6.7807,147.45,147.44,2.36104451]
[1751767542199,11.53812948,147.45,147.44,2.36104451]
[1751767542698,11.53812948,147.45,147.43,2.36104451]
[1751767542898,6.7807,147.45,147.43,2.36104451]
[1751767550401,4.7647657,147.44,147.43,2.36104451]
[1751767552105,13.85237548,147.44,147.43,2.36104451]
[1751767552508,20.63307548,147.44,147.43,2.36104451]
[1751767553407,13.85237548,147.44,147.43,2.36104451]
[1751767556411,18.95021158,147.44,147.43,2.36104451]
[1751767559512,25.73091158,147.44,147.42,9.14244451]
[1751767559718,13.85237548,147.43,147.42,9.14244451]
[1751767568826,20.63357548,147.43,147.41,6.7819]
[1751767569023,4.7647657,147.42,147.41,9.14294451]
[1751767569526,13.80869296,147.42,147.41,9.14294451]
[1751767570326,4.7647657,147.42,147.41,9.14294451]
[1751767572827,4.7647657,147.42,147.41,6.7819]
[1751767573027,4.7647657,147.42,147.41,9.14294451]
[1751767573228,4.7647657,147.42,147.41,2.36104451]
[1751767574529,4.7647657,147.42,147.41,9.14314451]
[1751767575328,4.7647657,147.42,147.4,52.6224]
[1751767575532,11.78862429,147.45,147.41,2.36104451]
[1751767575725,21.25997429,147.44,147.42,2.36104451]
[1751767576031,18.87913335,147.43,147.42,9.14264451]
[1751767576225,14.15094531,147.43,147.42,9.14264451]
[1751767576422,18.87907332,147.43,147.42,9.14264451]
[1751767577530,13.760135,147.43,147.42,9.14264451]
[1751767579435,13.75943509,147.43,147.42,9.14264451]
[1751767579627,18.87790488,147.43,147.42,2.36104451]
[1751767584333,18.87790488,147.43,147.41,6.7819]
[1751767584535,4.72745849,147.42,147.41,9.14294451]
[1751767586435,13.75715654,147.42,147.41,9.14294451]
[1751767588532,13.76227126,147.42,147.41,9.14294451]
[1751767589836,13.76227126,147.42,147.41,6.7819]
[1751767590136,13.76227126,147.42,147.41,9.14294451]
[1751767591533,13.76190639,147.42,147.41,9.14294451]
[1751767595443,13.76190639,147.42,147.41,6.7819]
[1751767595645,13.76190639,147.42,147.41,9.14294451]
[1751767597646,4.73220834,147.42,147.41,9.14294451]
[1751767598048,6.7807,147.44,147.41,9.14294451]
[1751767598242,13.76012568,147.43,147.42,2.36104451]
[1751767599448,9.02831921,147.43,147.42,2.36104451]
[1751767600251,14.16156934,147.43,147.42,2.36104451]
[1751767603151,14.16201127,147.43,147.42,2.36104451]
[1751767603353,18.8952193,147.43,147.42,2.36104451]
[1751767606858,18.8952193,147.43,147.42,9.14264451]
[1751767608560,13.76152724,147.43,147.42,9.14264451]
[1751767608758,18.89576553,147.43,147.42,9.14264451]
[1751767608957,13.76152724,147.43,147.42,9.14264451]
[1751767609151,18.89573987,147.43,147.42,9.14264451]
[1751767614562,18.89632578,147.43,147.42,9.14264451]
[1751767615158,18.89632578,147.43,147.41,6.7819]
[1751767615354,4.73320803,147.42,147.41,9.14294451]
[1751767619965,4.73320803,147.42,147.4,52.6223]
[1751767620164,2.36104451,147.45,147.41,196.22104451]
[1751767620366,18.93635299,147.44,147.41,196.22104451]
[1751767620666,18.93635299,147.43,147.42,9.14264451]
[1751767620869,9.42757978,147.48,147.42,2.35245903]
[1751767621169,2.35245903,147.51,147.47,2.35245903]
[1751767621366,6.7787,147.49,147.48,2.35245903]
[1751767621566,9.15779325,147.49,147.48,2.35245903]
[1751767623472,6.7787,147.49,147.48,2.35245903]
[1751767625277,2.35245903,147.49,147.44,45.76]
[1751767625475,2.35245903,147.47,147.44,45.76]
[1751767626569,6.7801,147.46,147.44,45.76]
[1751767627277,6.7795,147.47,147.44,54.89315903]
[1751767627675,2.3289,147.48,147.45,2.35245903]
[1751767627885,6.7783,147.5,147.47,9.13175903]
[1751767628176,4.8497,147.52,147.49,2.35245903]
[1751767628380,2.38035373,147.51,147.49,2.35245903]
[1751767628679,6.7778,147.51,147.49,2.35245903]
[1751767630480,6.7779,147.5,147.49,2.35245903]
[1751767630774,6.7779,147.5,147.48,9.13095903]
[1751767634390,6.7777,147.51,147.48,9.13095903]
[1751767634688,4.65163119,147.5,147.48,9.13095903]
[1751767634891,6.778,147.5,147.48,6.7785]
[1751767635090,6.778,147.5,147.48,9.13095903]
[1751767635692,6.778,147.5,147.48,2.35245903]
[1751767636194,6.7784,147.49,147.47,196.49245903]
[1751767636697,6.7784,147.49,147.47,194.14]
[1751767636895,2.35245903,147.49,147.44,45.76]
[1751767637192,11.21091315,147.48,147.44,48.11245903]
[1751767637495,2.35245903,147.5,147.46,2.35245903]
[1751767637688,13.51026663,147.49,147.47,2.35245903]
[1751767637884,13.51080333,147.48,147.47,2.35245903]
[1751767640102,4.65172718,147.48,147.47,2.35245903]
[1751767640689,6.7787,147.49,147.47,2.35245903]
[1751767640894,4.67404318,147.48,147.47,2.35245903]
[1751767641401,4.67404318,147.48,147.47,9.13175903]
[1751767642501,4.67404318,147.48,147.47,6.7793]
[1751767645498,4.8497,147.52,147.48,6.7786]
[1751767645698,13.49556325,147.51,147.49,2.35245903]
[1751767645899,4.65221441,147.5,147.49,2.35245903]
[1751767647005,4.65221441,147.5,147.48,9.13105903]
[1751767647204,6.7776,147.51,147.48,9.13105903]
[1751767647496,4.64977969,147.5,147.48,9.13105903]
[1751767647701,6.7776,147.51,147.48,9.13105903]
[1751767647907,4.64977969,147.5,147.48,9.13105903]
[1751767648095,6.7776,147.51,147.48,9.13105903]
[1751767648299,4.64957967,147.5,147.48,9.13105903]
[1751767648500,6.7776,147.51,147.48,9.13105903]
[1751767648700,4.64965757,147.5,147.48,9.13105903]
[1751767648905,6.7776,147.51,147.49,2.35245903]
[1751767649203,4.64965757,147.5,147.49,2.35245903]
[1751767651708,4.64965757,147.5,147.49,9.13085903]
[1751767651914,6.7773,147.52,147.49,9.13085903]
[1751767652108,13.52081513,147.51,147.5,2.35245903]
[1751767654115,13.52081513,147.51,147.5,9.13035903]
[1751767654311,95.51060581,147.54,147.5,2.35245903]
[1751767654509,13.51920768,147.53,147.52,2.35245903]
[1751767655514,6.7764,147.54,147.52,9.12945903]
[1751767655914,6.7759,147.55,147.53,9.12895903]
[1751767656111,6.7759,147.55,147.49,45.88]
[1751767656412,6.7759,147.55,147.53,2.35245903]
[1751767657207,6.7753,147.56,147.53,2.35245903]
[1751767657411,4.66688213,147.55,147.53,2.35245903]
[1751767657615,6.7753,147.56,147.53,2.35245903]